[Event "Titled Tuesday Blitz June 27 Late 2023"]
[White "Preotu, Razvan"]
[Black "Carrasco Miranda, Andres"]
[WhiteFideId "2613280"]
[BlackFideId "3405990"]
[WhiteElo "2734"]
[BlackElo "2407"]
[Result "1-0"]
[Round "1"]
[TimeControl "180+2"]
[Date "2023.06.27"]
[WhiteClock "0:00:46"]
[BlackClock "0:00:04"]
[Board "81"]

1. e4 {[%clk 0:03:00]}  e5 {[%clk 0:02:54]} 2. Nf3 {[%clk 0:03:01]}  Nc6 {[%clk 0:02:53]} 3. Bc4 {[%clk 0:03:02]}  Bc5 {[%clk 0:02:52]} 4. c3 {[%clk 0:03:01]}  Nf6 {[%clk 0:02:52]} 5. d3 {[%clk 0:03:02]}  d6 {[%clk 0:02:51]} 6. O-O {[%clk 0:03:02]}  O-O {[%clk 0:02:50]} 7. Re1 {[%clk 0:03:02]}  h6 {[%clk 0:02:50]} 8. b4 {[%clk 0:03:01]}  Bb6 {[%clk 0:02:50]} 9. Nbd2 {[%clk 0:03:01]}  Be6 {[%clk 0:02:50]} 10. Bxe6 {[%clk 0:02:41]}  fxe6 {[%clk 0:02:51]} 11. Nc4 {[%clk 0:02:41]}  Ne7 {[%clk 0:02:42]} 12. a4 {[%clk 0:02:14]}  c6 {[%clk 0:02:40]} 13. Nxb6 {[%clk 0:02:11]}  axb6 {[%clk 0:02:41]} 14. h3 {[%clk 0:02:10]}  Ng6 {[%clk 0:02:39]} 15. Be3 {[%clk 0:02:10]}  d5 {[%clk 0:02:02]} 16. Bd2 {[%clk 0:01:36]}  dxe4 {[%clk 0:01:33]} 17. dxe4 {[%clk 0:01:37]}  Qd3 {[%clk 0:01:31]} 18. Qb3 {[%clk 0:01:26]}  Nxe4 {[%clk 0:01:07]} 19. Qxe6+ {[%clk 0:01:25]}  Kh7 {[%clk 0:01:08]} 20. Qxg6+ {[%clk 0:01:12]}  Kxg6 {[%clk 0:01:03]} 21. Nxe5+ {[%clk 0:01:12]}  Kh7 {[%clk 0:01:02]} 22. Nxd3 {[%clk 0:01:13]}  Nxd2 {[%clk 0:01:02]} 23. Re7 {[%clk 0:00:56]}  Ra7 {[%clk 0:00:30]} 24. Ne5 {[%clk 0:00:49]}  Rf6 {[%clk 0:00:22]} 25. Rd1 {[%clk 0:00:46]}  Nb3 {[%clk 0:00:20]} 26. Rdd7 {[%clk 0:00:45]}  Rxa4 {[%clk 0:00:06]} 27. Rxg7+ {[%clk 0:00:45]}  Kh8 {[%clk 0:00:07]} 28. Rh7+ {[%clk 0:00:44]}  Kg8 {[%clk 0:00:07]} 29. Rdg7+ {[%clk 0:00:45]}  Kf8 {[%clk 0:00:04]} 30. Nd7+ {[%clk 0:00:46]} 1-0


[Site "https://www.chess.com"]

[Event "Titled Tuesday Blitz June 27 Late 2023"]
[White "Mujumdar, Sameer"]
[Black "Pakleza, Zbigniew"]
[WhiteFideId "2029707"]
[BlackFideId "1119290"]
[WhiteElo "2405"]
[BlackElo "2729"]
[Result "1-0"]
[Round "1"]
[TimeControl "180+2"]
[Date "2023.06.27"]
[WhiteClock "0:00:05"]
[BlackClock "0:00:00"]
[Board "84"]

1. d4 {[%clk 0:02:56]}  d6 {[%clk 0:02:59]} 2. Nf3 {[%clk 0:02:53]}  Bg4 {[%clk 0:02:57]} 3. e3 {[%clk 0:02:51]}  Nf6 {[%clk 0:02:57]} 4. Be2 {[%clk 0:02:50]}  Nbd7 {[%clk 0:02:57]} 5. O-O {[%clk 0:02:46]}  e5 {[%clk 0:02:57]} 6. b3 {[%clk 0:02:46]}  c6 {[%clk 0:02:56]} 7. Bb2 {[%clk 0:02:46]}  e4 {[%clk 0:02:51]} 8. Nfd2 {[%clk 0:02:42]}  Bxe2 {[%clk 0:02:52]} 9. Qxe2 {[%clk 0:02:39]}  d5 {[%clk 0:02:53]} 10. c4 {[%clk 0:02:37]}  Bd6 {[%clk 0:02:50]} 11. Ba3 {[%clk 0:02:31]}  Bxa3 {[%clk 0:02:47]} 12. Nxa3 {[%clk 0:02:24]}  Qa5 {[%clk 0:02:44]} 13. Nc2 {[%clk 0:02:20]}  O-O {[%clk 0:02:41]} 14. Rfc1 {[%clk 0:02:09]}  h6 {[%clk 0:02:33]} 15. a3 {[%clk 0:01:43]}  Rfc8 {[%clk 0:02:23]} 16. c5 {[%clk 0:01:38]}  Nf8 {[%clk 0:01:39]} 17. Qe1 {[%clk 0:01:19]}  Qc7 {[%clk 0:01:34]} 18. b4 {[%clk 0:01:07]}  Ng4 {[%clk 0:01:31]} 19. Nf1 {[%clk 0:01:05]}  f5 {[%clk 0:01:31]} 20. h3 {[%clk 0:01:05]}  Nf6 {[%clk 0:01:30]} 21. a4 {[%clk 0:00:56]}  Ne6 {[%clk 0:01:30]} 22. b5 {[%clk 0:00:52]}  f4 {[%clk 0:01:27]} 23. Nb4 {[%clk 0:00:51]}  f3 {[%clk 0:01:10]} 24. Ng3 {[%clk 0:00:44]}  fxg2 {[%clk 0:01:03]} 25. Kxg2 {[%clk 0:00:38]}  Ng5 {[%clk 0:01:02]} 26. Qe2 {[%clk 0:00:37]}  Qd7 {[%clk 0:00:51]} 27. Rh1 {[%clk 0:00:37]}  Rf8 {[%clk 0:00:50]} 28. Rab1 {[%clk 0:00:21]}  Nf3 {[%clk 0:00:42]} 29. a5 {[%clk 0:00:17]}  a6 {[%clk 0:00:35]} 30. bxc6 {[%clk 0:00:17]}  bxc6 {[%clk 0:00:35]} 31. Nxa6 {[%clk 0:00:18]}  Nh7 {[%clk 0:00:16]} 32. h4 {[%clk 0:00:16]}  Rf6 {[%clk 0:00:12]} 33. Nb8 {[%clk 0:00:14]}  Qf7 {[%clk 0:00:11]} 34. a6 {[%clk 0:00:12]}  Nf8 {[%clk 0:00:10]} 35. Rb7 {[%clk 0:00:11]}  Qg6 {[%clk 0:00:09]} 36. a7 {[%clk 0:00:09]}  Kh7 {[%clk 0:00:09]} 37. Na6 {[%clk 0:00:08]}  Ne6 {[%clk 0:00:08]} 38. Nc7 {[%clk 0:00:08]}  Nxc7 {[%clk 0:00:08]} 39. Rxc7 {[%clk 0:00:08]}  Qg4 {[%clk 0:00:08]} 40. Qb2 {[%clk 0:00:06]}  Nxh4+ {[%clk 0:00:07]} 41. Rxh4 {[%clk 0:00:06]}  Qxh4 {[%clk 0:00:08]} 42. Rxg7+ {[%clk 0:00:05]}  Kxg7 {[%clk 0:00:06]} 43. Qb7+ {[%clk 0:00:06]}  Rf7 {[%clk 0:00:05]} 44. Qxa8 {[%clk 0:00:06]}  Qg4 {[%clk 0:00:06]} 45. Qb8 {[%clk 0:00:03]}  Qf3+ {[%clk 0:00:05]} 46. Kh3 {[%clk 0:00:03]}  Qxf2 {[%clk 0:00:02]} 47. a8=Q {[%clk 0:00:04]}  Qf3 {[%clk 0:00:00]} 48. Qe5+ {[%clk 0:00:05]} 1-0


[Site "https://www.chess.com"]

[Event "Titled Tuesday Blitz June 27 Late 2023"]
[White "Fernandez, Daniel"]
[Black "Gatterer, Florian"]
[WhiteFideId "2015390"]
[BlackFideId "811688"]
[WhiteElo "2729"]
[BlackElo "2404"]
[Result "1/2-1/2"]
[Round "1"]
[TimeControl "180+2"]
[Date "2023.06.27"]
[WhiteClock "0:00:04"]
[BlackClock "0:00:11"]
[Board "85"]

1. Nf3 {[%clk 0:02:59]}  d6 {[%clk 0:02:59]} 2. c4 {[%clk 0:02:56]}  Nf6 {[%clk 0:02:58]} 3. Nc3 {[%clk 0:02:54]}  g6 {[%clk 0:02:58]} 4. g3 {[%clk 0:02:53]}  Bg7 {[%clk 0:02:58]} 5. Bg2 {[%clk 0:02:53]}  O-O {[%clk 0:02:58]} 6. O-O {[%clk 0:02:53]}  c5 {[%clk 0:02:57]} 7. d4 {[%clk 0:02:52]}  Nc6 {[%clk 0:02:52]} 8. dxc5 {[%clk 0:02:52]}  dxc5 {[%clk 0:02:52]} 9. Bf4 {[%clk 0:02:51]}  Be6 {[%clk 0:02:48]} 10. b3 {[%clk 0:02:44]}  Nh5 {[%clk 0:02:45]} 11. Qxd8 {[%clk 0:02:34]}  Raxd8 {[%clk 0:02:40]} 12. Rac1 {[%clk 0:02:32]}  Nxf4 {[%clk 0:02:33]} 13. gxf4 {[%clk 0:02:31]}  Rd7 {[%clk 0:02:15]} 14. Ng5 {[%clk 0:02:26]}  Bxc3 {[%clk 0:02:03]} 15. Nxe6 {[%clk 0:02:24]}  fxe6 {[%clk 0:01:54]} 16. Bxc6 {[%clk 0:02:20]}  bxc6 {[%clk 0:01:47]} 17. Rxc3 {[%clk 0:02:20]}  Rd2 {[%clk 0:01:45]} 18. e3 {[%clk 0:02:17]}  Rfd8 {[%clk 0:01:41]} 19. a3 {[%clk 0:02:04]}  Rb2 {[%clk 0:01:38]} 20. Kg2 {[%clk 0:01:54]}  Rdd2 {[%clk 0:01:36]} 21. b4 {[%clk 0:01:47]}  cxb4 {[%clk 0:01:34]} 22. axb4 {[%clk 0:01:47]}  Rxb4 {[%clk 0:01:31]} 23. Ra3 {[%clk 0:01:47]}  Rxc4 {[%clk 0:01:29]} 24. Rxa7 {[%clk 0:01:45]}  Kf7 {[%clk 0:01:29]} 25. Kf3 {[%clk 0:01:45]}  Rcc2 {[%clk 0:01:27]} 26. h4 {[%clk 0:01:44]}  Kf6 {[%clk 0:01:20]} 27. Ra8 {[%clk 0:01:43]}  Kf7 {[%clk 0:01:18]} 28. Rh8 {[%clk 0:01:18]}  Kg7 {[%clk 0:01:17]} 29. Re8 {[%clk 0:01:18]}  Kf7 {[%clk 0:01:17]} 30. Rc8 {[%clk 0:01:17]}  Kg7 {[%clk 0:01:14]} 31. h5 {[%clk 0:01:13]}  gxh5 {[%clk 0:01:13]} 32. Rg1+ {[%clk 0:01:08]}  Kf7 {[%clk 0:00:56]} 33. Rg2 {[%clk 0:01:00]}  Rd5 {[%clk 0:00:50]} 34. Rh8 {[%clk 0:00:58]}  Ra2 {[%clk 0:00:48]} 35. Rxh7+ {[%clk 0:00:57]}  Ke8 {[%clk 0:00:48]} 36. Rgg7 {[%clk 0:00:55]}  Ra7 {[%clk 0:00:44]} 37. Rg8+ {[%clk 0:00:42]}  Kd7 {[%clk 0:00:43]} 38. Rxe7+ {[%clk 0:00:42]}  Kxe7 {[%clk 0:00:40]} 39. Rg7+ {[%clk 0:00:42]}  Kf6 {[%clk 0:00:39]} 40. Rxa7 {[%clk 0:00:41]}  Rd2 {[%clk 0:00:36]} 41. Rc7 {[%clk 0:00:40]}  Rc2 {[%clk 0:00:36]} 42. Kg3 {[%clk 0:00:39]}  Kg6 {[%clk 0:00:34]} 43. f3 {[%clk 0:00:36]}  c5 {[%clk 0:00:27]} 44. e4 {[%clk 0:00:34]}  c4 {[%clk 0:00:27]} 45. Rc6 {[%clk 0:00:34]}  Kf7 {[%clk 0:00:26]} 46. Kh4 {[%clk 0:00:32]}  Rc3 {[%clk 0:00:26]} 47. Kg5 {[%clk 0:00:26]}  Ke7 {[%clk 0:00:24]} 48. e5 {[%clk 0:00:23]}  Kd7 {[%clk 0:00:23]} 49. Rd6+ {[%clk 0:00:23]}  Ke7 {[%clk 0:00:23]} 50. f5 {[%clk 0:00:16]}  exf5 {[%clk 0:00:20]} 51. f4 {[%clk 0:00:17]}  h4 {[%clk 0:00:17]} 52. Kxh4 {[%clk 0:00:16]}  Rc1 {[%clk 0:00:17]} 53. Kg5 {[%clk 0:00:15]}  c3 {[%clk 0:00:16]} 54. Rc6 {[%clk 0:00:13]}  c2 {[%clk 0:00:16]} 55. Kxf5 {[%clk 0:00:13]}  Kd7 {[%clk 0:00:16]} 56. Rc4 {[%clk 0:00:13]}  Ke7 {[%clk 0:00:16]} 57. Rc7+ {[%clk 0:00:12]}  Kd8 {[%clk 0:00:16]} 58. Rc5 {[%clk 0:00:12]}  Kd7 {[%clk 0:00:16]} 59. Kf6 {[%clk 0:00:11]}  Rf1 {[%clk 0:00:14]} 60. e6+ {[%clk 0:00:05]}  Kd6 {[%clk 0:00:14]} 61. Rxc2 {[%clk 0:00:05]}  Rxf4+ {[%clk 0:00:14]} 62. Kg5 {[%clk 0:00:04]}  Re4 {[%clk 0:00:13]} 63. Kf5 {[%clk 0:00:04]}  Re5+ {[%clk 0:00:12]} 64. Kf4 {[%clk 0:00:04]}  Rxe6 {[%clk 0:00:11]} 65. Rc3 {[%clk 0:00:04]}  Ke7 {[%clk 0:00:11]} 66. Re3 {[%clk 0:00:04]}  Rxe3 {[%clk 0:00:11]} 67. Kxe3 {[%clk 0:00:04]} 1/2-1/2


[Site "https://www.chess.com"]

[Event "Titled Tuesday Blitz June 27 Late 2023"]
[White "dodoucb"]
[Black "Ghazarian, Kirk"]
[BlackFideId "30908604"]
[WhiteElo "2403"]
[BlackElo "2726"]
[Result "0-1"]
[Round "1"]
[TimeControl "180+2"]
[Date "2023.06.27"]
[WhiteClock "0:00:00"]
[BlackClock "0:00:04"]
[Board "86"]

1. d4 {[%clk 0:02:59]}  d5 {[%clk 0:02:57]} 2. c4 {[%clk 0:02:58]}  e6 {[%clk 0:02:57]} 3. Nc3 {[%clk 0:02:58]}  a6 {[%clk 0:02:57]} 4. e4 {[%clk 0:02:34]}  dxe4 {[%clk 0:02:56]} 5. Nxe4 {[%clk 0:02:32]}  Bb4+ {[%clk 0:02:56]} 6. Nc3 {[%clk 0:01:38]}  c5 {[%clk 0:02:52]} 7. Be3 {[%clk 0:01:32]}  cxd4 {[%clk 0:02:45]} 8. Bxd4 {[%clk 0:01:29]}  Nf6 {[%clk 0:02:42]} 9. a3 {[%clk 0:01:29]}  Be7 {[%clk 0:02:39]} 10. Nf3 {[%clk 0:01:21]}  Nc6 {[%clk 0:02:39]} 11. Be3 {[%clk 0:01:21]}  O-O {[%clk 0:02:38]} 12. Be2 {[%clk 0:01:21]}  Ng4 {[%clk 0:02:36]} 13. Bf4 {[%clk 0:01:21]}  Qb6 {[%clk 0:02:29]} 14. O-O {[%clk 0:00:56]}  Qxb2 {[%clk 0:02:28]} 15. Na4 {[%clk 0:00:56]}  Qf6 {[%clk 0:02:18]} 16. Bg5 {[%clk 0:00:49]}  Qg6 {[%clk 0:02:09]} 17. Nb6 {[%clk 0:00:42]}  Bxg5 {[%clk 0:01:49]} 18. Nxg5 {[%clk 0:00:31]}  Qxg5 {[%clk 0:01:43]} 19. Nxa8 {[%clk 0:00:31]}  Rd8 {[%clk 0:01:29]} 20. Qb3 {[%clk 0:00:27]}  Nd4 {[%clk 0:01:23]} 21. Qd1 {[%clk 0:00:26]}  Nf3+ {[%clk 0:00:49]} 22. Bxf3 {[%clk 0:00:25]}  Rxd1 {[%clk 0:00:50]} 23. Raxd1 {[%clk 0:00:24]}  Ne5 {[%clk 0:00:48]} 24. Be4 {[%clk 0:00:21]}  Qe7 {[%clk 0:00:38]} 25. Nb6 {[%clk 0:00:18]}  Bd7 {[%clk 0:00:29]} 26. Nxd7 {[%clk 0:00:18]}  Nxd7 {[%clk 0:00:28]} 27. Bxb7 {[%clk 0:00:19]}  Nc5 {[%clk 0:00:25]} 28. Bf3 {[%clk 0:00:18]}  g6 {[%clk 0:00:23]} 29. Rb1 {[%clk 0:00:13]}  Kg7 {[%clk 0:00:23]} 30. Rfd1 {[%clk 0:00:13]}  h5 {[%clk 0:00:16]} 31. h3 {[%clk 0:00:13]}  h4 {[%clk 0:00:15]} 32. Rb6 {[%clk 0:00:11]}  Qf6 {[%clk 0:00:13]} 33. Rc6 {[%clk 0:00:10]}  Qe5 {[%clk 0:00:09]} 34. Rc8 {[%clk 0:00:04]}  a5 {[%clk 0:00:09]} 35. Rb1 {[%clk 0:00:02]}  Nd3 {[%clk 0:00:08]} 36. Rf1 {[%clk 0:00:02]}  Qd4 {[%clk 0:00:07]} 37. Rc7 {[%clk 0:00:01]}  Ne5 {[%clk 0:00:07]} 38. Rc8 {[%clk 0:00:01]}  Nxf3+ {[%clk 0:00:06]} 39. gxf3 {[%clk 0:00:02]}  Qc3 {[%clk 0:00:05]} 40. Kg2 {[%clk 0:00:03]}  Qxa3 {[%clk 0:00:05]} 41. c5 {[%clk 0:00:03]}  Qc3 {[%clk 0:00:05]} 42. c6 {[%clk 0:00:04]}  a4 {[%clk 0:00:05]} 43. c7 {[%clk 0:00:04]}  a3 {[%clk 0:00:06]} 44. Ra8 {[%clk 0:00:03]}  Qxc7 {[%clk 0:00:05]} 45. Rxa3 {[%clk 0:00:04]}  Qf4 {[%clk 0:00:06]} 46. Re3 {[%clk 0:00:04]}  Qg5+ {[%clk 0:00:06]} 47. Kh2 {[%clk 0:00:05]}  Qf5 {[%clk 0:00:07]} 48. Kg2 {[%clk 0:00:05]}  Kf6 {[%clk 0:00:07]} 49. Kh2 {[%clk 0:00:06]}  Qg5 {[%clk 0:00:06]} 50. Rg1 {[%clk 0:00:06]}  Qc5 {[%clk 0:00:06]} 51. Rg4 {[%clk 0:00:06]}  Qh5 {[%clk 0:00:05]} 52. Kg2 {[%clk 0:00:06]}  g5 {[%clk 0:00:06]} 53. Rc4 {[%clk 0:00:06]}  Qh7 {[%clk 0:00:05]} 54. Rc7 {[%clk 0:00:06]}  Qf5 {[%clk 0:00:05]} 55. Re4 {[%clk 0:00:06]}  Kg6 {[%clk 0:00:05]} 56. Rg4 {[%clk 0:00:06]}  Qe5 {[%clk 0:00:05]} 57. Rcc4 {[%clk 0:00:06]}  Qd5 {[%clk 0:00:05]} 58. Rgd4 {[%clk 0:00:06]}  Qb7 {[%clk 0:00:05]} 59. Rb4 {[%clk 0:00:06]}  Qa8 {[%clk 0:00:05]} 60. Ra4 {[%clk 0:00:06]}  Qe8 {[%clk 0:00:05]} 61. Ra7 {[%clk 0:00:05]}  f6 {[%clk 0:00:04]} 62. Rdd7 {[%clk 0:00:05]}  e5 {[%clk 0:00:04]} 63. Rg7+ {[%clk 0:00:05]}  Kf5 {[%clk 0:00:05]} 64. Rgf7 {[%clk 0:00:06]}  Qe6 {[%clk 0:00:05]} 65. Rfe7 {[%clk 0:00:06]}  Qd5 {[%clk 0:00:04]} 66. Red7 {[%clk 0:00:06]}  Qc4 {[%clk 0:00:04]} 67. Re7 {[%clk 0:00:06]}  Qc5 {[%clk 0:00:03]} 68. Rac7 {[%clk 0:00:05]}  Qb4 {[%clk 0:00:04]} 69. Rb7 {[%clk 0:00:05]}  Qd4 {[%clk 0:00:04]} 70. Rbd7 {[%clk 0:00:06]}  Qa4 {[%clk 0:00:04]} 71. Ra7 {[%clk 0:00:06]}  Qb4 {[%clk 0:00:05]} 72. Rab7 {[%clk 0:00:06]}  Qa3 {[%clk 0:00:05]} 73. Ra7 {[%clk 0:00:06]}  Qc1 {[%clk 0:00:06]} 74. Rac7 {[%clk 0:00:07]}  Qb1 {[%clk 0:00:06]} 75. Rf7 {[%clk 0:00:06]}  e4 {[%clk 0:00:05]} 76. fxe4+ {[%clk 0:00:03]}  Qxe4+ {[%clk 0:00:06]} 77. Kh2 {[%clk 0:00:04]}  Qf3 {[%clk 0:00:05]} 78. Rc2 {[%clk 0:00:04]}  Qf4+ {[%clk 0:00:05]} 79. Kg1 {[%clk 0:00:05]}  g4 {[%clk 0:00:05]} 80. Rc5+ {[%clk 0:00:04]}  Kg6 {[%clk 0:00:05]} 81. Rf8 {[%clk 0:00:02]}  gxh3 {[%clk 0:00:05]} 82. Rg8+ {[%clk 0:00:03]}  Kf7 {[%clk 0:00:05]} 83. Rgc8 {[%clk 0:00:00]}  Qf3 {[%clk 0:00:04]} 0-1


[Site "https://www.chess.com"]

[Event "Titled Tuesday Blitz June 27 Late 2023"]
[White "Pinto, Daniel"]
[Black "Hambleton, Aman"]
[WhiteFideId "3303144"]
[BlackFideId "2606577"]
[WhiteElo "2398"]
[BlackElo "2721"]
[Result "1/2-1/2"]
[Round "1"]
[TimeControl "180+2"]
[Date "2023.06.27"]
[WhiteClock "0:00:07"]
[BlackClock "0:00:02"]
[Board "88"]

1. e4 {[%clk 0:03:00]}  d5 {[%clk 0:02:59]} 2. exd5 {[%clk 0:02:59]}  Qxd5 {[%clk 0:02:59]} 3. Nc3 {[%clk 0:03:00]}  Qe5+ {[%clk 0:03:00]} 4. Qe2 {[%clk 0:02:47]}  Qxe2+ {[%clk 0:03:00]} 5. Bxe2 {[%clk 0:02:48]}  c6 {[%clk 0:03:00]} 6. Nf3 {[%clk 0:02:48]}  Bf5 {[%clk 0:02:48]} 7. d3 {[%clk 0:02:33]}  h6 {[%clk 0:02:41]} 8. O-O {[%clk 0:02:06]}  e6 {[%clk 0:02:39]} 9. Nd4 {[%clk 0:02:00]}  Bg6 {[%clk 0:02:35]} 10. Bf3 {[%clk 0:01:51]}  Bd6 {[%clk 0:02:18]} 11. Re1 {[%clk 0:01:34]}  Nf6 {[%clk 0:01:34]} 12. Ndb5 {[%clk 0:01:28]}  Kd7 {[%clk 0:01:34]} 13. Nxd6 {[%clk 0:01:26]}  Kxd6 {[%clk 0:01:35]} 14. Bf4+ {[%clk 0:01:26]}  Ke7 {[%clk 0:01:36]} 15. b4 {[%clk 0:01:17]}  Bh5 {[%clk 0:00:55]} 16. Be4 {[%clk 0:01:07]}  Na6 {[%clk 0:00:21]} 17. Rab1 {[%clk 0:00:40]}  Rhd8 {[%clk 0:00:20]} 18. a4 {[%clk 0:00:35]}  Rac8 {[%clk 0:00:13]} 19. Be3 {[%clk 0:00:31]}  b6 {[%clk 0:00:06]} 20. h3 {[%clk 0:00:22]}  Nxe4 {[%clk 0:00:02]} 21. Nxe4 {[%clk 0:00:23]}  Bg6 {[%clk 0:00:03]} 22. Nd2 {[%clk 0:00:18]}  c5 {[%clk 0:00:02]} 23. bxc5 {[%clk 0:00:05]}  Nxc5 {[%clk 0:00:03]} 24. a5 {[%clk 0:00:05]}  bxa5 {[%clk 0:00:04]} 25. Nc4 {[%clk 0:00:02]}  a4 {[%clk 0:00:02]} 26. Ra1 {[%clk 0:00:01]}  Rd7 {[%clk 0:00:01]} 27. Bxc5+ {[%clk 0:00:01]}  Rxc5 {[%clk 0:00:02]} 28. Rxa4 {[%clk 0:00:02]}  Rdc7 {[%clk 0:00:02]} 29. Rea1 {[%clk 0:00:02]}  e5 {[%clk 0:00:01]} 30. Rxa7 {[%clk 0:00:03]}  e4 {[%clk 0:00:02]} 31. Rxc7+ {[%clk 0:00:03]}  Rxc7 {[%clk 0:00:03]} 32. Re1 {[%clk 0:00:03]}  Kf8 {[%clk 0:00:03]} 33. Ne5 {[%clk 0:00:03]}  exd3 {[%clk 0:00:02]} 34. Nxg6+ {[%clk 0:00:04]}  fxg6 {[%clk 0:00:03]} 35. cxd3 {[%clk 0:00:04]}  Rc2 {[%clk 0:00:03]} 36. Rd1 {[%clk 0:00:04]}  Ke7 {[%clk 0:00:03]} 37. d4 {[%clk 0:00:05]}  Kd6 {[%clk 0:00:03]} 38. d5 {[%clk 0:00:05]}  Rc5 {[%clk 0:00:03]} 39. g3 {[%clk 0:00:04]}  Rxd5 {[%clk 0:00:04]} 40. Ra1 {[%clk 0:00:04]}  Ke6 {[%clk 0:00:03]} 41. Kg2 {[%clk 0:00:04]}  Rd6 {[%clk 0:00:03]} 42. Ra4 {[%clk 0:00:04]}  g5 {[%clk 0:00:04]} 43. Ra5 {[%clk 0:00:03]}  Kf6 {[%clk 0:00:04]} 44. Ra4 {[%clk 0:00:04]}  Rc6 {[%clk 0:00:04]} 45. Ra5 {[%clk 0:00:04]}  Rb6 {[%clk 0:00:04]} 46. Ra4 {[%clk 0:00:04]}  Kg6 {[%clk 0:00:04]} 47. Ra5 {[%clk 0:00:04]}  Rc6 {[%clk 0:00:05]} 48. Ra4 {[%clk 0:00:05]}  h5 {[%clk 0:00:05]} 49. Ra5 {[%clk 0:00:04]}  Rd6 {[%clk 0:00:05]} 50. Ra4 {[%clk 0:00:04]}  Rd5 {[%clk 0:00:04]} 51. Ra6+ {[%clk 0:00:04]}  Kf5 {[%clk 0:00:05]} 52. Ra3 {[%clk 0:00:03]}  g4 {[%clk 0:00:03]} 53. hxg4+ {[%clk 0:00:02]}  Kxg4 {[%clk 0:00:04]} 54. Ra4+ {[%clk 0:00:02]}  Kg5 {[%clk 0:00:04]} 55. Rh4 {[%clk 0:00:03]}  g6 {[%clk 0:00:04]} 56. Ra4 {[%clk 0:00:03]}  Rc5 {[%clk 0:00:04]} 57. Ra3 {[%clk 0:00:03]}  Rb5 {[%clk 0:00:04]} 58. Rf3 {[%clk 0:00:04]}  Ra5 {[%clk 0:00:04]} 59. Re3 {[%clk 0:00:04]}  Rb5 {[%clk 0:00:04]} 60. Rd3 {[%clk 0:00:05]}  Re5 {[%clk 0:00:05]} 61. Ra3 {[%clk 0:00:05]}  Rf5 {[%clk 0:00:05]} 62. Rb3 {[%clk 0:00:05]}  Rc5 {[%clk 0:00:05]} 63. Ra3 {[%clk 0:00:06]}  Rb5 {[%clk 0:00:05]} 64. Rc3 {[%clk 0:00:06]}  Kf5 {[%clk 0:00:06]} 65. Rd3 {[%clk 0:00:07]}  g5 {[%clk 0:00:06]} 66. Rd8 {[%clk 0:00:06]}  Rb2 {[%clk 0:00:06]} 67. Rf8+ {[%clk 0:00:07]}  Kg6 {[%clk 0:00:06]} 68. Ra8 {[%clk 0:00:06]}  Rb6 {[%clk 0:00:05]} 69. Ra5 {[%clk 0:00:07]}  Rf6 {[%clk 0:00:05]} 70. Ra4 {[%clk 0:00:07]}  Re6 {[%clk 0:00:03]} 71. Ra5 {[%clk 0:00:07]}  Rd6 {[%clk 0:00:03]} 72. Ra4 {[%clk 0:00:07]}  Rb6 {[%clk 0:00:03]} 73. Ra5 {[%clk 0:00:08]}  Rf6 {[%clk 0:00:02]} 74. Ra4 {[%clk 0:00:08]}  g4 {[%clk 0:00:02]} 75. Ra5 {[%clk 0:00:08]}  Re6 {[%clk 0:00:03]} 76. Ra4 {[%clk 0:00:08]}  Re5 {[%clk 0:00:03]} 77. Ra6+ {[%clk 0:00:08]}  Kg5 {[%clk 0:00:04]} 78. Ra8 {[%clk 0:00:08]}  Rb5 {[%clk 0:00:04]} 79. Rg8+ {[%clk 0:00:09]}  Kh6 {[%clk 0:00:04]} 80. Rh8+ {[%clk 0:00:09]}  Kg6 {[%clk 0:00:04]} 81. Rg8+ {[%clk 0:00:09]}  Kf7 {[%clk 0:00:05]} 82. Rh8 {[%clk 0:00:09]}  Kg7 {[%clk 0:00:05]} 83. Ra8 {[%clk 0:00:10]}  Rc5 {[%clk 0:00:04]} 84. Ra7+ {[%clk 0:00:10]}  Kg6 {[%clk 0:00:05]} 85. Ra6+ {[%clk 0:00:10]}  Kg5 {[%clk 0:00:05]} 86. Ra4 {[%clk 0:00:10]}  h4 {[%clk 0:00:03]} 87. gxh4+ {[%clk 0:00:10]}  Kxh4 {[%clk 0:00:04]} 88. f3 {[%clk 0:00:06]}  Rc2+ {[%clk 0:00:04]} 89. Kf1 {[%clk 0:00:07]}  Kg3 {[%clk 0:00:05]} 90. fxg4 {[%clk 0:00:06]}  Kf3 {[%clk 0:00:05]} 91. Ke1 {[%clk 0:00:06]}  Rg2 {[%clk 0:00:03]} 92. Ra3+ {[%clk 0:00:04]}  Kxg4 {[%clk 0:00:03]} 93. Ra4+ {[%clk 0:00:04]}  Kf3 {[%clk 0:00:03]} 94. Ra3+ {[%clk 0:00:05]}  Ke4 {[%clk 0:00:03]} 95. Ra4+ {[%clk 0:00:05]}  Ke3 {[%clk 0:00:03]} 96. Ra3+ {[%clk 0:00:06]}  Kd4 {[%clk 0:00:03]} 97. Ra4+ {[%clk 0:00:06]}  Kc3 {[%clk 0:00:02]} 98. Ra3+ {[%clk 0:00:06]}  Kb4 {[%clk 0:00:02]} 99. Rd3 {[%clk 0:00:06]}  Kc4 {[%clk 0:00:02]} 100. Rd2 {[%clk 0:00:07]}  Rxd2 {[%clk 0:00:02]} 101. Kxd2 {[%clk 0:00:07]} 1/2-1/2


[Site "https://www.chess.com"]

[Event "Titled Tuesday Blitz June 27 Late 2023"]
[White "Danielyan, Vahe"]
[Black "Pesotskiy, Mikhail"]
[WhiteFideId "13304828"]
[BlackFideId "34164453"]
[WhiteElo "2713"]
[BlackElo "2387"]
[Result "0-1"]
[Round "1"]
[TimeControl "180+2"]
[Date "2023.06.27"]
[WhiteClock "0:00:00"]
[BlackClock "0:00:02"]
[Board "91"]

1. e4 {[%clk 0:02:57]}  e6 {[%clk 0:02:59]} 2. d4 {[%clk 0:02:56]}  d5 {[%clk 0:03:00]} 3. Nd2 {[%clk 0:02:51]}  Nf6 {[%clk 0:03:00]} 4. e5 {[%clk 0:02:50]}  Nfd7 {[%clk 0:03:00]} 5. f4 {[%clk 0:02:51]}  c5 {[%clk 0:03:01]} 6. Ndf3 {[%clk 0:02:49]}  Nc6 {[%clk 0:03:02]} 7. c3 {[%clk 0:02:44]}  Qb6 {[%clk 0:02:57]} 8. Ne2 {[%clk 0:02:34]}  f6 {[%clk 0:02:54]} 9. g3 {[%clk 0:02:26]}  cxd4 {[%clk 0:02:45]} 10. cxd4 {[%clk 0:02:26]}  Bb4+ {[%clk 0:02:45]} 11. Bd2 {[%clk 0:02:22]}  O-O {[%clk 0:02:46]} 12. Bh3 {[%clk 0:02:20]}  fxe5 {[%clk 0:02:42]} 13. Bxe6+ {[%clk 0:02:08]}  Kh8 {[%clk 0:02:42]} 14. Ng5 {[%clk 0:02:09]}  Nxd4 {[%clk 0:02:13]} 15. Nxd4 {[%clk 0:01:53]}  Qxd4 {[%clk 0:02:14]} 16. Bxb4 {[%clk 0:01:50]}  Qxb4+ {[%clk 0:02:09]} 17. Qd2 {[%clk 0:01:50]}  Qe7 {[%clk 0:01:39]} 18. O-O {[%clk 0:01:45]}  exf4 {[%clk 0:01:34]} 19. Rxf4 {[%clk 0:01:24]}  Nf6 {[%clk 0:01:29]} 20. Re1 {[%clk 0:01:09]}  Bxe6 {[%clk 0:01:22]} 21. Rxe6 {[%clk 0:01:04]}  Qc5+ {[%clk 0:01:20]} 22. Kg2 {[%clk 0:01:04]}  h6 {[%clk 0:01:03]} 23. Rh4 {[%clk 0:00:42]}  Kg8 {[%clk 0:00:54]} 24. b4 {[%clk 0:00:20]}  Qc8 {[%clk 0:00:33]} 25. Rxf6 {[%clk 0:00:17]}  Rxf6 {[%clk 0:00:28]} 26. Qxd5+ {[%clk 0:00:18]}  Kh8 {[%clk 0:00:15]} 27. Nf7+ {[%clk 0:00:11]}  Kh7 {[%clk 0:00:15]} 28. Ne5 {[%clk 0:00:06]}  Qf5 {[%clk 0:00:12]} 29. Rf4 {[%clk 0:00:02]}  Qc2+ {[%clk 0:00:13]} 30. Kh3 {[%clk 0:00:02]}  Rxf4 {[%clk 0:00:13]} 31. gxf4 {[%clk 0:00:02]}  Qf5+ {[%clk 0:00:14]} 32. Kg3 {[%clk 0:00:03]}  Rf8 {[%clk 0:00:15]} 33. Qd4 {[%clk 0:00:03]}  g5 {[%clk 0:00:10]} 34. Nd3 {[%clk 0:00:03]}  gxf4+ {[%clk 0:00:09]} 35. Nxf4 {[%clk 0:00:04]}  Qg5+ {[%clk 0:00:09]} 36. Kf3 {[%clk 0:00:05]}  Qh5+ {[%clk 0:00:09]} 37. Kg3 {[%clk 0:00:05]}  Rg8+ {[%clk 0:00:08]} 38. Kf2 {[%clk 0:00:04]}  Qxh2+ {[%clk 0:00:08]} 39. Ke3 {[%clk 0:00:03]}  Re8+ {[%clk 0:00:06]} 40. Kd3 {[%clk 0:00:03]}  Qg3+ {[%clk 0:00:04]} 41. Kc4 {[%clk 0:00:03]}  Qg8+ {[%clk 0:00:04]} 42. Kb5 {[%clk 0:00:01]}  Qg5+ {[%clk 0:00:03]} 43. Ka4 {[%clk 0:00:02]}  Qe5 {[%clk 0:00:02]} 44. Qd3+ {[%clk 0:00:01]}  Qe4 {[%clk 0:00:02]} 45. Qd7+ {[%clk 0:00:01]}  Re7 {[%clk 0:00:03]} 46. Qg4 {[%clk 0:00:02]}  b6 {[%clk 0:00:01]} 47. Ka3 {[%clk 0:00:00]}  a5 {[%clk 0:00:02]} 0-1


[Site "https://www.chess.com"]